Cogmind - Beta 10.1 *** ADVENTURER MODE // 2020.09.24 @ 11:12:45 Player: Vetulus Result: Destroyed by D-53 Grenadier with Mini Grenade Launcher Performance ------------- Evolutions (0) 0 Regions Visited (2) 400 Robots Destroyed (27) 135 Value Destroyed (422) 422 Prototype IDs (2) 40 Alien Tech Used (0) 0 Bonus (0) 0 TOTAL SCORE: 997 Bonus ------- None Cogmind --------- Core Integrity 0/250 Matter 232/300 Energy 90/100 System Corruption 0% Temperature Cool (1) Movement Walking (180) Ox2 Location -10/Mines Parts ------- > --- POWER (1) -------- (None) > --- PROPULSION (2) --- Aluminum Leg > --- UTILITY (2) ------ Large Storage Unit Signal Interpreter > --- WEAPON (2) ------- Particle Gun Grenade Launcher > --- INVENTORY (10) --- Light Ion Engine Aluminum Leg Aluminum Leg Large Storage Unit Targeting Computer Light Armor Plating Assault Rifle Light Assault Rifle Heavy Assault Rifle Light Cannon Peak State ------------ > --- POWER ------------ Light Nuclear Core > --- PROPULSION ------- Aluminum Leg Aluminum Leg > --- UTILITY ---------- Large Storage Unit Signal Interpreter > --- WEAPON ----------- Particle Gun Heavy Assault Rifle > --- INVENTORY -------- Light Ion Engine Aluminum Leg Aluminum Leg Large Storage Unit Targeting Computer Light Armor Plating Assault Rifle Light Assault Rifle Light Cannon Grenade Launcher [Rating: 12] Favorites ----------- Power Light Nuclear Core Engine Light Ion Engine Power Core Light Nuclear Core Propulsion Aluminum Leg Leg Aluminum Leg Utility Signal Interpreter Storage Large Storage Unit Processor Signal Interpreter Weapon Assault Rifle Energy Gun Particle Gun Ballistic Gun Assault Rifle Ballistic Cannon Light Cannon Launcher Grenade Launcher Build | -11 -10 -10 ------- Run | Scr Mat Min Slots Evolved . | . . . Power . | . . . Propulsion . | . . . Utility . | . . . Weapon . | . . . Parts Attached 15 | 6 2 7 Power 2 | 1 . 1 Engine 1 | 1 . . Core 1 | . . 1 Reactor . | . . . Propulsion 2 | 2 . . Treads . | . . . Leg 2 | 2 . . Wheel . | . . . Hover . | . . . Flight . | . . . Utility 3 | 1 2 . Device . | . . . Storage 2 | 1 1 . Processor 1 | . 1 . Hackware . | . . . Protection . | . . . Artifact . | . . . Weapon 8 | 2 . 6 Energy Gun 2 | . . 2 Energy Cannon . | . . . Ballistic Gun 3 | 2 . 1 Ballistic Cannon 1 | . . 1 Launcher 2 | . . 2 Special Weapon . | . . . Impact Weapon . | . . . Slashing Weapon . | . . . Piercing Weapon . | . . . Special Melee Weapon . | . . . Unidentified Prototypes . | . . . Parts Lost 2 | . . 2 Power 1 | . . 1 Propulsion 1 | . . 1 Utility . | . . . Weapon . | . . . Highest Loss Streak 2 | . . 2 Average Slot Usage (%) 98 | . 98 98 Engine 6 | . 14 . Core 7 | . . 13 Leg 27 | . 28 27 Storage 14 | . 14 14 Processor 13 | . 12 14 Energy Gun 2 | . . 4 Ballistic Gun 21 | . 28 16 Ballistic Cannon 3 | . . 5 Naked Turns . | . . . Heaviest Build 27 | 11 23 27 Greatest Support 20 | 20 20 20 Greatest Overweight (x) 2 | . 1 2 Average Overweight (x) . | . . 1 Largest Inventory Capacity 10 | 6 10 10 Average Capacity 9 | 4 9 10 Most Carried 10 | 2 10 10 Average Carried 7 | 1 5 9 Final Capacity 10 | 6 10 10 Final Carried 10 | 2 10 10 Class Distribution -------------------- 100% | Mutant Dominant Class ---------------- Mutant | -10/Materials Mutant | -10/Mines Resources | -11 -10 -10 ----------- Run | Scr Mat Min Matter Collected 592 | 212 128 252 Remotely . | . . . Salvage Created 590 | . 188 402 Parts 37 | . 14 23 Haulers Intercepted . | . . . Recyclers Shooed 2 | . 1 1 Parts Field Recycled . | . . . Retrieved Matter . | . . . Parts Self-Destructed . | . . . Prevented . | . . . Kills | -11 -10 -10 ------- Run | Scr Mat Min Combat Hostiles Destroyed 24 | . 8 16 Guns 20 | . 8 12 AOE 4 | . . 4 Classes Destroyed 7 | . 3 4 Worker 1 | . . 1 Recycler 1 | . . 1 Watcher 1 | . 1 . Swarmer 9 | . 6 3 Grunt 5 | . 2 3 Sentry 2 | . . 2 Assembled 8 | . . 8 Best Kill Streak 5 | . 5 5 Combat Bots Only 5 | . 5 5 Max Kills in Single Turn 3 | . 2 3 Gunslinging 1 | . 1 . Exploded 2 | . . 2 Melee . | . . . Uniques/NPCs Destroyed . | . . . Combat | -11 -10 -10 -------- Run | Scr Mat Min Damage Taken 855 | . 135 720 Core 264 | . 43 221 Absorbed by Shields . | . . . Core Remaining (%) 100 | 100 . . Volleys Fired 53 | . 21 32 Largest 2 | . 2 2 Hottest 95 | . 40 95 Shots Fired 106 | . 42 64 Gun 95 | . 42 53 Cannon 6 | . . 6 Launcher 5 | . . 5 Special . | . . . Kinetic 88 | . 42 46 Thermal 13 | . . 13 Explosive 5 | . . 5 Electromagnetic . | . . . Robot Hit Streak 23 | . 14 23 Robot Miss Streak 3 | . 1 3 Penetration Max . | . . . Secondary Targets 5 | . 2 3 Max Gunslinging Chain 1 | . 1 1 Shots Hit Robots 77 | . 31 46 Core Hits 44 | . 13 31 Critical Hits 1 | . . 1 Critical Kills 1 | . . 1 Critical Parts Destroyed . | . . . Melee Attacks . | . . . Impact . | . . . Slashing . | . . . Piercing . | . . . Sneak Attacks . | . . . Combat Hostiles . | . . . Follow-up Attacks . | . . . Damage Inflicted 1293 | . 410 883 Guns 892 | . 347 545 Cannons 79 | . . 79 Explosions 322 | . 63 259 Melee . | . . . Ramming . | . . . Kinetic 822 | . 347 475 Thermal 149 | . . 149 Explosive 322 | . 63 259 Electromagnetic . | . . . Impact . | . . . Slashing . | . . . Piercing . | . . . Highest Corruption . | . . . Average Corruption . | . . . Corruption Purged . | . . . Overload Shots . | . . . Overflow Damage 43 | . 43 . Projectiles . | . . . Explosions 43 | . 43 . Melee . | . . . Knockbacks . | . . . Impact . | . . . Kinetic . | . . . Secondary . | . . . Self-Inflicted Damage 9 | . . 9 Shots 1 | . . 1 Rammed . | . . . Targets Rammed . | . . . Kicked . | . . . Crushed . | . . . Highest Temperature 344 | . 2 344 Average Temperature 88 | . 2 90 Received Heat Transfer 385 | . 39 346 Effects 1 | . . 1 Shutdowns 1 | . . 1 Siege Activations . | . . . Robots Corrupted . | . . . Combat Hostiles . | . . . Parts Fried . | . . . Impact Corruptions . | . . . Robots Melted . | . . . Combat Hostiles . | . . . Parts Melted . | . . . Heat Transferred 370 | . . 370 Parts Sabotaged . | . . . Parts Stolen . | . . . Parts Stripped . | . . . Power Chain Reactions . | . . . Missiles Intercepted . | . . . Alert | -11 -10 -10 ------- Run | Scr Mat Min Peak Influence 179 | . 120 179 Initial 39 | . . 39 Average 84 | . 80 98 Maximum Alert Level . | . . . Low Security (%) 100 | 100 100 100 Level 1 . | . . . Level 2 . | . . . Level 3 . | . . . Level 4 . | . . . Level 5 . | . . . High Security . | . . . Max Security . | . . . Squads Dispatched . | . . . Investigation . | . . . Extermination . | . . . Reinforcement . | . . . Assault . | . . . Garrison . | . . . Intercept . | . . . Construction Impeded . | . . . Haulers Reinforced . | . . . Stealth | -11 -10 -10 --------- Run | Scr Mat Min Distress Signals . | . . . Communications Jammed . | . . . Distress Signals . | . . . Times Spotted 33 | . 11 22 Peak Tracking Total 6 | . 4 6 Tactical Retreats 1 | . . 1 Traps | -11 -10 -10 ------- Run | Scr Mat Min Traps Triggered . | . . . Indirectly . | . . . Trap Hack Attempts . | . . . Triggered . | . . . Disarmed . | . . . Reprogrammed 6 | . 6 . Reused . | . . . Traps Extracted . | . . . Installed . | . . . Triggered . | . . . Machines | -11 -10 -10 ---------- Run | Scr Mat Min Machines Disabled 1 | . 1 . Max in Single Turn 1 | . 1 . Machines Sabotaged . | . . . Garrisons Compromised . | . . . Overloaded Fab Kills . | . . . Fab Network Shutdowns . | . . . Hacking | -11 -10 -10 --------- Run | Scr Mat Min Machines Accessed 6 | . 6 . Terminals 5 | . 5 . Fabricators . | . . . Repair Stations . | . . . Recycling Units 1 | . 1 . Scanalyzers . | . . . Garrison Access . | . . . Total Hacks 19 | . 19 . Successful 13 | . 13 . Failed 6 | . 6 . Catastrophic . | . . . Database Lockouts . | . . . Manual 1 | . 1 . Terminals 16 | . 16 . Fabricators . | . . . Repair Stations . | . . . Recycling Units 3 | . 3 . Scanalyzers . | . . . Garrison Access . | . . . Terminal Hacks 11 | . 11 . Robot Analysis 1 | . 1 . Prototype ID Bank 1 | . 1 . Emergency Access Points 2 | . 2 . Locate Traps 3 | . 3 . Reprogram Traps 1 | . 1 . Registered Prototypes 1 | . 1 . Zone Layout 2 | . 2 . Fabricator Hacks . | . . . Repair Station Hacks . | . . . Recycling Unit Hacks 2 | . 2 . Process 1 | . 1 . Report Inventory 1 | . 1 . Scanalyzer . | . . . Garrison Access Hacks . | . . . Unauthorized Hacks . | . . . Terminals . | . . . Fabricators . | . . . Repair Stations . | . . . Recycling Units . | . . . Scanalyzers . | . . . Garrison Access . | . . . Data Cores Recovered . | . . . Used . | . . . Hacking Detections 5 | . 5 . Full Trace Events . | . . . Feedback Events . | . . . Feedback Blocked . | . . . Robot Schematics Acquired . | . . . Robots Built . | . . . Matter . | . . . Time . | . . . Total Robot Build Rating . | . . . Part Schematics Acquired . | . . . Parts Built . | . . . Matter . | . . . Time . | . . . Total Part Build Rating . | . . . Parts Repaired . | . . . Time . | . . . Parts Recycled . | . . . Recycled Matter . | . . . Retrieved Matter . | . . . Retrieved Components . | . . . Parts Scanalyzed . | . . . Part Schematics Acquired . | . . . Parts Damaged . | . . . Bothacking | -11 -10 -10 ------------ Run | Scr Mat Min Used RIF Installer . | . . . Robots Hacked . | . . . Non-combat . | . . . Combat . | . . . Robot Hacks Applied . | . . . Relay Couplers Released . | . . . Robots Rewired . | . . . Allies Hacked . | . . . Hacks Repelled . | . . . Allies | -11 -10 -10 -------- Run | Scr Mat Min Total Allies . | . . . Largest Group . | . . . Highest-Rated Group . | . . . Highest-Rated Ally . | . . . Total Orders . | . . . Ally Attacks . | . . . Total Damage . | . . . Kills . | . . . Allies Corrupted . | . . . Allies Melted . | . . . Intel | -11 -10 -10 ------- Run | Scr Mat Min Robot Analysis Total 1 | . 1 . Derelict Logs Recovered 1 | . . 1 Drone Launches . | . . . Drone Recoveries . | . . . Exploration | -11 -10 -10 ------------- Run | Scr Mat Min Turns Passed 1211 | 83 502 626 Spaces Moved 662 | 63 279 320 Core 9 | 9 . . Treads . | . . . Legs 653 | 54 279 320 Wheels . | . . . Hover . | . . . Flight . | . . . Fastest Speed 50 | 50 120 150 Average Speed 144 | 110 144 150 Slowest Speed 180 | 120 150 180 Overloaded Moves . | . . . Propulsion Burnouts . | . . . Robots Hopped . | . . . Cave-ins Triggered . | . . . Exploration Rate (%) 41 | 4 52 68 Regions Visited 2 Branch Regions 1 Pre-discovered Areas . | . . . Known Exits Taken 1 | . 1 . Unknown Exits Taken 1 | 1 . . Scrap Searched 1 | . . 1 Spaces Dug . | . . . Terrain Destroyed 37 | . 5 32 Melee . | . . . Projectile . | . . . AOE 37 | . 5 32 Terrain Rammed . | . . . Walls Destroyed . | . . . Machines Disabled . | . . . Actions | -11 -10 -10 --------- Run | Scr Mat Min Total 812 | 76 335 401 Wait 53 | . 23 30 Move 660 | 62 278 320 Hop . | . . . Pick Up 24 | 8 10 6 Fast Attach . | . . . Attach 7 | 6 1 . Detach . | . . . Swap 8 | . 1 7 Drop 7 | . 1 6 Fire 53 | . 21 32 Melee . | . . . Ram . | . . . Kick . | . . . Crush . | . . . Escape Stasis . | . . . Rewire . | . . . Trap . | . . . Miscellaneous . | . . . Route ------- -11/Scrapyard -10/Materials (discovered 2 exits: *Mat / *Min) -10/Mines (discovered 2 exits: *Mat x2) History --------- Turn | Location | Event 5 | -11/Scrapyard | Discovered new exit (range 15) 84 | -11/Scrapyard | Entered Materials 230 | -10/Materials | Discovered new exit (range 14) 301 | -10/Materials | Build established: Mutant 489 | -10/Materials | Discovered new exit (range 7) 585 | -10/Materials | Identified exit to Mines 586 | -10/Materials | Entered Mines 654 | -10/Mines | Discovered new exit (range 12) 660 | -10/Mines | Discovered new exit (range 7) 669 | -10/Mines | Identified exit to Materials 1076 | -10/Mines | Learned location of 1 exit from Materials 1129 | -10/Mines | Assembled infested the area 1134 | -10/Mines | Assisted by a Guerilla fighting off Assembled 1155 | -10/Mines | Core integrity fell below 50% 1194 | -10/Mines | Core integrity fell below 20% 1212 | -10/Mines | Destroyed by D-53 Grenadier with Mini Grenade Launcher Last Messages --------------- 01159_ as-06484 destroyed. 01165_ T-07 Excavator destroyed. 01165_ as-43419 destroyed. 01165_ Switching to secondary target: as-46763. 01172_ Power failure, Lgt. Nuclear Core shutdown. 01173_ Acquired 24 matter. 01179_ as-14591 sneak attacks. 01179_ U-05 Engineer system corrupted by crushing effect. 01187_ Aluminum Leg destroyed. 01192_ as-49268 destroyed. 01192_ as-29979 destroyed. 01192_ as-36971 destroyed. 01195_ Lgt. Nuclear Core destroyed. 01195_ as-46763 destroyed. 01197_ The unstable cave ceiling collapses. 01200_ Acquired 2 matter. 01204_ Acquired 12 matter. 01207_ as-79788 destroyed. 01210_ as-92129 destroyed. 01210_ as-85372 destroyed. Map ----- +----------------------------------------------------+ | ?????????????????????????????????????????????????? | | ?????????????????????????????????????????????????? | | ????????????????????????????????????????###??????? | | ?????####??????????????????????????????# ##?????? | | ???### ##????????????????????????????? #?????? | | ??## #????????????????????????????? #?????? | | ??# #????????????????#####????????# #?????? | | ???# #??####?????????## ##???????# #?????? | | ???## #### ##??####### ####???## #??????? | | ????## ## #### #??## ##?????? | | ?????## ## ## #### ##????? | | ??????##### ### ##???? | | ??????????## #### #?# #???? | | ######?????## ##??# #?###### """ ##### | | ##?????## ###???# #?###### """ | | ####???# ##?????# #?# """ | | #??? #??????# #?# ### ##### | | ## #### #??????# #?# #?## ###????? | | #?# ## ! =%= #??????? ??# #?## ##??????? | | ###??# ## ### #??????? ?? ### #???????? | | ?????# #?## #??######??# ## #???????? | | ?????#### ##?## ### ##### ## ######??? | | ??????### ##?# d ## ## | | ?????## #?# d ## #### ###? | | ?????# #?## ### #???????? | | ?????# #??## @ #?## ##???????? | | ?????# #???# = ##??####????????? | | ?????# #???# ####???????????????? | | ?????# ##???## ##??????????????????? | | ?????# #?????## ###???????????????????? | | ###### # #?????### % ##?????????????????????? | | ## #???????# ##??????????????????????? | | ### #???????# ##????????????????????????? | | ########?# #???????##%#?????????????????????????? | | ????###### #????????#%#?????????????????????????? | | ????# #????????#%#?????????????????????????? | | ????# #????????#|#?????????????????????????? | | ????# ######????????#=#######???????????????????? | | ????# #?????????????# #???????????????????? | | ??### #?????????????####### #???????????????????? | | ?## ##????????????????????????????????????????? | | ## ##???????????????????????????????????????? | | # ##??????????????????????????????????????? | | # #??????????????????????????????????????? | | # #??????????????????????????????????????? | | ## #??????????????????????????????????????? | | ?# ##??????????????????????????????????????? | | ?# ##??????????????????????????????????????? | | ?# ##?????????????????????????????????????? | | ?# ########??????????????????????????????? | +----------------------------------------------------+ Best States ------------- Heat Dissipation 25 Energy Generation 14 Energy Capacity 160 Matter Stores 300 Matter Capacity 300 Sight Range 16 Terrain Scan Density 10 Resistance: KI 20 Resistance: TH 20 Resistance: EX 20 Resistance: EM 20 Resistance: I 20 Resistance: S 20 Resistance: P 20 Evasion (%) 40 Offensive Hacking 10 Item Schematics ----------------- None Robot Schematics ------------------ None Fabricated ------------ Nothing Alien Tech Used ----------------- None Achievements -------------- None Challenges ------------ None Game ------ Seed AlloyExplosiveShredder Manual? 0 Play Time 00:14:05 Cumulative 17.6 hours Start 2020.09.24 @ 11:00:05 End 2020.09.24 @ 11:12:45 Sessions 1 Manual Loads 0 Difficulty Adventurer Special Mode None Game No. 27 Rogue 23 Adventurer 4 Explorer 0 Win Type - Total 0 Types 0/0/0/0/0/0/0/0/0 Lore% 22 Gallery% 28 Achievement% 27 Wizard Run 0 Options --------- ASCII 0 Keyboard 0 Movement Mouse Keybinds 0 Fullscreen 2 Font 32/Terminus Map View 63x52 Tactical HUD 1 Map Filters NONE Filters NONE Steam 1 RUN: 8956b801-d0df-41be-a9fe-61b6ea28da02